Cogmind - Beta 13 @@@ ROGUE MODE // 2024.06.20 @ 18:59:01 Player: ovsyanka Result: Destroyed by D-53 Grenadier with Mini Grenade Launcher Performance ------------- Evolutions (0) 0 Regions Visited (2) 400 Robots Destroyed (22) 110 Value Destroyed (437) 437 Prototype IDs (0) 0 Alien Tech Used (0) 0 Bonus (0) 0 TOTAL SCORE: 947 Bonus ------- None Cogmind --------- Core Integrity 0/250 Matter 256/300 Energy 88/100 System Corruption 0% Temperature Cool (70) Movement Core (400) Ox7 Location -10/Mines Parts ------- > --- POWER (1) -------- (None) > --- PROPULSION (2) --- (None) > --- UTILITY (2) ------ Large Storage Unit Seismic Detector > --- WEAPON (2) ------- Beam Cannon > --- INVENTORY (15) --- Heat Sink High-capacity Matter Pod (186) Structural Scanner Improved Terrain Scanner Terrain Scan Processor Core Shielding Light Assault Rifle Grenade Launcher Peak State ------------ > --- POWER ------------ Ion Engine > --- PROPULSION ------- Light Treads Light Treads > --- UTILITY ---------- Small Storage Unit Seismic Detector > --- WEAPON ----------- Light Assault Rifle Light Assault Rifle > --- INVENTORY -------- Heat Sink High-capacity Matter Pod Structural Scanner Improved Terrain Scanner Core Shielding Grenade Launcher Welding Torch Welding Torch [Rating: 8] Favorites ----------- Power Ion Engine Engine Ion Engine Propulsion Light Treads Treads Light Treads Utility Seismic Detector Device Seismic Detector Storage Small Storage Unit Weapon Light Assault Rifle Energy Cannon Beam Cannon Ballistic Gun Light Assault Rifle Ballistic Cannon Light Cannon Launcher Grenade Launcher Special Weapon Mining Laser Build | -11 -10 -10 ------- Run | Yrd Mat Min Slots Evolved . | . . . Power . | . . . Propulsion . | . . . Utility . | . . . Weapon . | . . . Parts Attached 20 | 7 12 1 Power 2 | 1 1 . Engine 2 | 1 1 . Core . | . . . Reactor . | . . . Propulsion 2 | 2 . . Treads 2 | 2 . . Leg . | . . . Wheel . | . . . Hover . | . . . Flight . | . . . Utility 3 | 2 1 . Device 1 | 1 . . Storage 2 | 1 1 . Processor . | . . . Hackware . | . . . Protection . | . . . Artifact . | . . . Weapon 13 | 2 10 1 Energy Gun . | . . . Energy Cannon 2 | . 2 . Ballistic Gun 8 | 2 6 . Ballistic Cannon 1 | . . 1 Launcher 1 | . 1 . Special Weapon 1 | . 1 . Impact Weapon . | . . . Slashing Weapon . | . . . Piercing Weapon . | . . . Special Melee Weapon . | . . . Unidentified Prototypes . | . . . Parts Lost 5 | . 1 4 Power 2 | . 1 1 Propulsion 2 | . . 2 Utility . | . . . Weapon 1 | . . 1 Highest Loss Streak 4 | . 1 4 To Critical Strikes . | . . . Average Slot Usage (%) 99 | . 99 97 Engine 13 | . 13 13 Treads 27 | . 28 26 Device 14 | . 14 14 Storage 14 | . 14 14 Energy Cannon 6 | . 3 25 Ballistic Gun 20 | . 24 . Naked Turns . | . . . Heaviest Build 32 | 11 32 32 Greatest Support 40 | 40 40 40 Greatest Overweight (x) 2 | 2 . 1 Average Overweight (x) . | . . . Largest Inventory Capacity 15 | 8 15 15 Average Capacity 9 | 7 8 15 Most Carried 8 | 1 8 8 Average Carried 6 | . 6 8 Final Capacity 15 | 8 15 15 Final Carried 8 | 1 8 8 Class Distribution -------------------- 76% | Mutant 23% | Scavenger-Mutant Dominant Class ---------------- Mutant | -10/Materials Mutant | -10/Mines Resources | -11 -10 -10 ----------- Run | Yrd Mat Min Matter Collected 672 | 298 349 25 Remotely . | . . . Salvage Created 610 | 132 478 . Parts 43 | 6 37 . Haulers Intercepted . | . . . Recyclers Shooed . | . . . Parts Field Recycled . | . . . Retrieved Matter . | . . . Parts Self-Destructed . | . . . Prevented . | . . . Kills | -11 -10 -10 ------- Run | Yrd Mat Min Combat Hostiles Destroyed 12 | . 12 . Guns 11 | . 11 . AOE 1 | . 1 . Classes Destroyed 7 | 2 5 . Builder 3 | . 3 . Tunneler 3 | 2 1 . Recycler 2 | 1 1 . Operator 1 | . 1 . Watcher 1 | . 1 . Swarmer 6 | . 6 . Grunt 6 | . 6 . Best Kill Streak 6 | 2 6 . Combat Bots Only 6 | . 6 . Max Kills in Single Turn 1 | 1 1 . Gunslinging . | . . . Exploded 1 | . 1 . Melee . | . . . Uniques/NPCs Destroyed . | . . . Combat | -11 -10 -10 -------- Run | Yrd Mat Min Hostile Shots Fired 73 | . 61 12 Missed 18 | . 16 2 Damage Taken 946 | . 463 483 Core 251 | . 55 196 Absorbed by Shields . | . . . Core Remaining (%) 100 | 100 . . Volleys Fired 83 | 14 64 5 Largest 2 | 2 2 1 Hottest 100 | 40 100 60 Shots Fired 151 | 28 118 5 Gun 140 | 28 112 . Cannon 5 | . . 5 Launcher 2 | . 2 . Special 4 | . 4 . Kinetic 140 | 28 112 . Thermal 9 | . 4 5 Explosive 2 | . 2 . Electromagnetic . | . . . Robot Hit Streak 8 | 7 8 . Robot Miss Streak 3 | 2 3 . Penetration Max . | . . . Secondary Targets 1 | . 1 . Max Gunslinging Chain 1 | . 1 . Shots Hit Robots 86 | 20 66 . Core Hits 46 | 7 38 1 Critical Kills . | . . . Critical Parts Destroyed 1 | . 1 . Critical Strikes 1 | . 1 . Destroy 1 | . 1 . Melee Attacks . | . . . Impact . | . . . Slashing . | . . . Piercing . | . . . Sneak Attacks . | . . . Combat Hostiles . | . . . Follow-up Attacks . | . . . Damage Inflicted 877 | 167 675 35 Guns 738 | 167 571 . Cannons 35 | . . 35 Explosions 104 | . 104 . Melee . | . . . Ramming . | . . . Kinetic 738 | 167 571 . Thermal 64 | . 29 35 Explosive 75 | . 75 . Electromagnetic . | . . . Impact . | . . . Slashing . | . . . Piercing . | . . . Highest Corruption . | . . . Average Corruption . | . . . Corruption Purged . | . . . Corruption Blocked . | . . . Overload Shots . | . . . Overflow Damage 37 | . 37 . Projectiles . | . . . Explosions 37 | . 37 . Melee . | . . . Knockbacks . | . . . Impact . | . . . Kinetic . | . . . Secondary . | . . . Self-Inflicted Damage . | . . . Shots . | . . . Rammed 1 | . 1 . Targets Rammed 1 | . 1 . Kicked . | . . . Crushed . | . . . Highest Temperature 70 | . 62 70 Average Temperature 25 | . 22 44 Received Heat Transfer 192 | . 192 . Siege Activations . | . . . Robots Corrupted . | . . . Combat Hostiles . | . . . Parts Fried . | . . . Impact Corruptions . | . . . Robots Melted . | . . . Combat Hostiles . | . . . Parts Melted . | . . . Heat Transferred 124 | . 50 74 Parts Sabotaged . | . . . Parts Stolen . | . . . Parts Stripped . | . . . Power Chain Reactions . | . . . Alert | -11 -10 -10 ------- Run | Yrd Mat Min Peak Influence 336 | 15 336 70 Initial 40 | . 9 40 Average 114 | 4 135 48 Maximum Alert Level 1 | . 1 . Low Security (%) 84 | 100 80 100 Level 1 15 | . 19 . Level 2 . | . . . Level 3 . | . . . Level 4 . | . . . Level 5 . | . . . High Security . | . . . Max Security . | . . . Squads Dispatched 1 | . 1 . Investigation . | . . . Extermination . | . . . Reinforcement 1 | . 1 . Assault . | . . . Garrison . | . . . Intercept . | . . . Searches Triggered . | . . . Construction Impeded . | . . . Haulers Reinforced . | . . . Active Scanning Responses . | . . . Cargo Convoy Interrupts . | . . . Stealth | -11 -10 -10 --------- Run | Yrd Mat Min Distress Signals 1 | . 1 . Communications Jammed . | . . . Distress Signals . | . . . Times Spotted 23 | . 19 4 Peak Tracking Total 4 | . 4 2 Tactical Retreats 2 | . 1 1 Traps | -11 -10 -10 ------- Run | Yrd Mat Min Traps Triggered . | . . . Indirectly . | . . . Trap Hack Attempts . | . . . Triggered . | . . . Disarmed . | . . . Reprogrammed . | . . . Reused . | . . . Traps Extracted . | . . . Installed . | . . . Triggered . | . . . Machines | -11 -10 -10 ---------- Run | Yrd Mat Min Machines Disabled 8 | . 8 . Max in Single Turn 8 | . 8 . Machines Repaired . | . . . Machines Dismantled . | . . . Machines Sabotaged . | . . . Overloaded Fab Kills . | . . . Hacking | -11 -10 -10 --------- Run | Yrd Mat Min Machines Accessed 1 | . 1 . Terminals 1 | . 1 . Fabricators . | . . . Repair Stations . | . . . Recycling Units . | . . . Scanalyzers . | . . . Garrison Access . | . . . Total Hacks 2 | . 2 . Successful 2 | . 2 . Failed . | . . . Catastrophic . | . . . Database Lockouts . | . . . Manual 2 | . 2 . Terminals 2 | . 2 . Fabricators . | . . . Repair Stations . | . . . Recycling Units . | . . . Scanalyzers . | . . . Garrison Access . | . . . Terminal Hacks 2 | . 2 . Robot Analysis 2 | . 2 . Fabricator Hacks . | . . . Repair Station Hacks . | . . . Recycling Unit Hacks . | . . . Scanalyzer . | . . . Garrison Access Hacks . | . . . Unauthorized Hacks . | . . . Terminals . | . . . Fabricators . | . . . Repair Stations . | . . . Recycling Units . | . . . Scanalyzers . | . . . Garrison Access . | . . . Data Cores Recovered . | . . . Used . | . . . Hacking Detections 1 | . 1 . Full Trace Events . | . . . Feedback Events . | . . . Feedback Blocked . | . . . Robot Schematics Acquired . | . . . Robots Built . | . . . Authchips . | . . . Time . | . . . Total Robot Build Rating . | . . . Part Schematics Acquired . | . . . Parts Built . | . . . Authchips . | . . . Time . | . . . Total Part Build Rating . | . . . Parts Repaired . | . . . Time . | . . . Parts Recycled . | . . . Recycled Matter . | . . . Retrieved Matter . | . . . Retrieved Components . | . . . Parts Scanalyzed . | . . . Part Schematics Acquired . | . . . Parts Damaged . | . . . Bothacking | -11 -10 -10 ------------ Run | Yrd Mat Min Used RIF Installer . | . . . Robots Hacked . | . . . Non-combat . | . . . Combat . | . . . Robot Hacks Applied . | . . . Relay Couplers Released . | . . . Fabnet Peak Effective % . | . . . Robots Rewired . | . . . Allies Hacked . | . . . Hacks Repelled . | . . . Allies | -11 -10 -10 -------- Run | Yrd Mat Min Total Allies . | . . . Largest Group . | . . . Highest-Rated Group . | . . . Highest-Rated Ally . | . . . Total Orders . | . . . Ally Attacks . | . . . Total Damage . | . . . Kills . | . . . Allies Corrupted . | . . . Allies Melted . | . . . Intel | -11 -10 -10 ------- Run | Yrd Mat Min Robot Analysis Total 2 | . 2 . Derelict Logs Recovered 1 | . . 1 Drone Launches . | . . . Drone Recoveries . | . . . Exploration | -11 -10 -10 ------------- Run | Yrd Mat Min Turns Passed 1922 | 140 1532 250 Spaces Moved 804 | 66 590 148 Core 15 | 15 . . Treads 789 | 51 590 148 Legs . | . . . Wheels . | . . . Hover . | . . . Flight . | . . . Fastest Speed 50 | 50 160 160 Average Speed 158 | 141 160 160 Slowest Speed 240 | 160 160 240 Overloaded Moves . | . . . Propulsion Burnouts . | . . . Robots Hopped . | . . . Cave-ins Triggered . | . . . Exploration Rate (%) 44 | 5 87 41 Regions Visited 2 Branch Regions 1 Pre-discovered Areas 1 | . . 1 Known Exits Taken . | . . . Unknown Exits Taken 2 | 1 1 . Scrap Searched 1 | . . 1 Spaces Dug 4 | . 4 . Terrain Destroyed 25 | . 25 . Melee . | . . . Projectile 4 | . 4 . AOE 21 | . 21 . Terrain Rammed . | . . . Walls Destroyed . | . . . Machines Disabled . | . . . Actions | -11 -10 -10 --------- Run | Yrd Mat Min Total 1318 | 87 1076 155 Wait 389 | . 389 . Move 802 | 65 589 148 Hop . | . . . Pick Up 12 | 1 11 . Fast Attach 12 | 7 4 1 Attach . | . . . Detach . | . . . Swap 8 | . 8 . Drop 11 | . 10 1 Fire 83 | 14 64 5 Melee . | . . . Ram . | . . . Kick . | . . . Crush 1 | . 1 . Escape Stasis . | . . . Rewire . | . . . Trap . | . . . Miscellaneous . | . . . Route ------- -11/Scrapyard -10/Materials (discovered 4 exits: [*Mat x3] / [*Min]) -10/Mines History --------- Turn | Location | Event 27 | -11/Scrapyard | Discovered new exit (range 16) 141 | -11/Scrapyard | Entered Materials 313 | -10/Materials | Build established: Mutant 438 | -10/Materials | Discovered new exit (range 3) 655 | -10/Materials | Discovered new exit (range 10) 783 | -10/Materials | Discovered new exit (range 15) 1179 | -10/Materials | Build established: Scavenger-Mutant 1468 | -10/Materials | Discovered new exit (range 5) 1628 | -10/Materials | Build established: Mutant 1673 | -10/Materials | Entered Mines 1900 | -10/Mines | Assembled infested the area 1905 | -10/Mines | Assisted by a Guerilla fighting off Assembled 1918 | -10/Mines | Core integrity fell below 50% 1922 | -10/Mines | Core integrity fell below 20% 1923 | -10/Mines | Destroyed by D-53 Grenadier with Mini Grenade Launcher Last Messages --------------- 01880_ Acquired Lgt. Cannon. 01900_ ALERT: Infestation in the mines, dispatching Demolisher response squad. 01905_ A derelict emerges from the shadows: "You need to get out of here! I've been tracking a group of Assembled to figure out where they're coming from, and they're closing on this area, come on!" 01910_ C-30 ARC bursts open, deploying its payload. 01910_ D-53 Grenadier unfolds itself. 01910_ Lgt. Treads destroyed. 01911_ 0O-MI0(h): "I'll hold them off! Go on ahead or try to find another way!" 01911_ D-53 Grenadier suffers critical hit (Destroy). 01911_ 0O-MI0(h) destroyed. 01911_ T-07 Excavator destroyed. 01913_ Lgt. Cannon destroyed. 01914_ The unstable cave ceiling collapses. 01917_ Lgt. Treads destroyed. 01917_ Ion Engine destroyed. 01923_ The unstable cave ceiling collapses. Map ----- +----------------------------------------------------+ | ??????????????## ##?## ##???????????????????? | | ???????????????# ##?## #####???????????????? | | ???????????????# #??# ##??????????????? | | ???????????????# #### ##?????????????? | | ???????????????## ##????????????? | | ????????????????## #????????????? | | ?????????????????## ###### #????????????? | | ??????????????????# #????## ##???????????? | | ??????????????????# #????## #???????????? | | ??????????????????# #??### #??????????? | | ??????????????????# #?## ## #??????????? | | ??????????????????# #?# ##??? #??????????? | | ?????????????????? ?# ###??????#??????????? | | ??????????????????## ## ##???????????????????? | | ???????????????????# # ##????????????????????? | | ???????????????????# # ##?????????????????????? | | ???????????????????# d##??????????????????????? | | ???????????????????### d #???????????????????????? | | ?????????????????????# #???????????????????????? | | ????????????########## #???????????????????????? | | ?????????# ] [ ####????????????????????? | | ????????????########### ##???????????????????? | | ????????????????????## ##??????????????????? | | ????????????????????# ##?????????????????? | | ????????????????????# #####?????????????? | | ????????????????????# @ #?????????????? | | ????????????????????# #?????????????? | | ????????????????????# ### #?????????????? | | ????????????????????## #??? ???????????? | | ?????????????????????## # #????####??????????? | | ??????????????????????##### ###??????????????????? | | ???????????????????????????##????????????????????? | | ?????????????????????????????????????????????????? | | ?????????????????????????????????????????????????? | | | | | | | | | | | | | | | | | | | | | | | | | | | | | | | | | +----------------------------------------------------+ Best States ------------- Heat Dissipation 25 Energy Generation 10 Energy Capacity 250 Matter Stores 300 Matter Capacity 300 Sight Range 16 Terrain Scan Density 10 Evasion (%) 50 Recoil Reduction 2 Item Schematics ----------------- None Robot Schematics ------------------ None Fabricated ------------ Nothing Alien Tech Used ----------------- None Achievements -------------- None Challenges ------------ None Game ------ Seed PiercingRiotBiocell Manual? 0 Play Time 00:08:36 Cumulative 48.0 hours Start 2024.06.20 @ 18:51:31 End 2024.06.20 @ 18:59:01 Sessions 1 Manual Loads 0 Difficulty Rogue Special Mode None Game No. 34 Rogue 21 Adventurer 13 Explorer 0 Win Type - Total 0 Types 0/0/0/0/0/0/0/0/0 Lore% 23 Gallery% 40 Achievement% 32 Wizard Run 0 Options --------- Layout 2 ASCII 0 Keyboard 0 Movement Numpad Keybinds 0 Fullscreen 2 Font 16/Swanston Map View 55x47 Zoom Use 0% Tactical HUD 1 Map Filters NONE Filters NONE Steam 0 RUN: 22e5e40f-9f3a-4838-9b53-4354bba8e9ca